[Event "NJSK 2021 Jeugd A"]
[Site "Almelo, Netherlands"]
[Date "2021.08.02"]
[Round "2.4"]
[White "Bruil, Rembrandt"]
[Black "Roebers, Eline"]
[Result "1-0"]
[TimeControl "90min/40moves + 30min + 30sec/move"]
[WhiteElo "2105"]
[BlackElo "2173"]

1. d4 {[%clk 01:30:58]} {[%emt 00:00:02]} f5 {[%clk 01:30:34]} {[%emt
00:00:26]} 2. Nc3 {[%clk 01:31:11]} {[%emt 00:00:16]} Nf6 {[%clk 01:30:52]}
{[%emt 00:00:11]} 3. Bg5 {[%clk 01:31:26]} {[%emt 00:00:16]} d5 {[%clk
01:31:08]} {[%emt 00:00:14]} 4. Bxf6 {[%clk 01:31:27]} {[%emt 00:00:29]} exf6
{[%clk 01:31:25]} {[%emt 00:00:13]} 5. e3 {[%clk 01:31:46]} {[%emt 00:00:11]}
Be6 {[%clk 01:31:18]} {[%emt 00:00:37]} 6. Bd3 {[%clk 01:31:37]} {[%emt
00:00:39]} Qd7 {[%clk 01:31:13]} {[%emt 00:00:35]} 7. Nge2 {[%clk 01:31:53]}
{[%emt 00:00:14]} Nc6 {[%clk 01:30:58]} {[%emt 00:00:46]} 8. a3 {[%clk
01:32:17]} {[%emt 00:00:06]} Ne7 {[%clk 01:30:07]} {[%emt 00:01:19]} 9. Qd2
{[%clk 01:31:33]} {[%emt 00:01:15]} O-O-O {[%clk 01:25:46]} {[%emt 00:04:52]}
10. b4 {[%clk 01:31:16]} {[%emt 00:00:46]} g5 {[%clk 01:24:00]} {[%emt
00:02:16]} 11. a4 {[%clk 01:21:35]} {[%emt 00:10:11]} Kb8 {[%clk 01:23:04]}
{[%emt 00:01:26]} 12. a5 {[%clk 01:16:28]} {[%emt 00:05:37]} Nc8 {[%clk
01:17:59]} {[%emt 00:05:36]} 13. Na4 {[%clk 01:01:12]} {[%emt 00:15:45]} Nd6
{[%clk 01:08:13]} {[%emt 00:10:16]} 14. Nc5 {[%clk 00:56:20]} {[%emt 00:05:21]}
Qe8 {[%clk 01:08:24]} {[%emt 00:00:19]} 15. O-O {[%clk 00:45:38]} {[%emt
00:11:12]} Ne4 {[%clk 00:46:49]} {[%emt 00:22:06]} 16. Qc1 {[%clk 00:42:55]}
{[%emt 00:03:11]} c6 {[%clk 00:35:57]} {[%emt 00:11:23]} 17. Qb2 {[%clk
00:23:43]} {[%emt 00:19:41]} a6 {[%clk 00:28:43]} {[%emt 00:07:45]} 18. Rfd1
{[%clk 00:20:58]} {[%emt 00:03:14]} Bc8 {[%clk 00:22:14]} {[%emt 00:06:59]} 19.
c4 {[%clk 00:20:19]} {[%emt 00:01:09]} dxc4 {[%clk 00:22:29]} {[%emt 00:00:15]}
20. Bxc4 {[%clk 00:20:23]} {[%emt 00:00:26]} Nd6 {[%clk 00:21:02]} {[%emt
00:01:58]} 21. Ba2 {[%clk 00:19:47]} {[%emt 00:01:05]} Nb5 {[%clk 00:19:10]}
{[%emt 00:02:22]} 22. d5 {[%clk 00:18:05]} {[%emt 00:02:12]} Bd6 {[%clk
00:13:24]} {[%emt 00:06:16]} 23. dxc6 {[%clk 00:15:37]} {[%emt 00:02:59]} Qxc6
{[%clk 00:13:51]} {[%emt 00:00:03]} 24. Nd4 {[%clk 00:13:44]} {[%emt 00:02:22]}
Nxd4 {[%clk 00:11:10]} {[%emt 00:03:11]} 25. exd4 {[%clk 00:14:08]} {[%emt
00:00:06]} Qc7 {[%clk 00:09:23]} {[%emt 00:02:17]} 26. g3 {[%clk 00:11:50]}
{[%emt 00:02:48]} f4 {[%clk 00:07:03]} {[%emt 00:02:50]} 27. Rac1 {[%clk
00:11:03]} {[%emt 00:01:17]} Bxc5 {[%clk 00:07:16]} {[%emt 00:00:17]} 28. bxc5
{[%clk 00:07:17]} {[%emt 00:04:16]} Qxa5 {[%clk 00:04:47]} {[%emt 00:02:58]} 29.
c6 {[%clk 00:06:43]} {[%emt 00:01:04]} Ka8 {[%clk 00:04:44]} {[%emt 00:00:33]}
30. Be6 {[%clk 00:03:35]} {[%emt 00:03:38]} Qb5 {[%clk 00:01:16]} {[%emt
00:03:59]} 31. Qxb5 {[%clk 00:02:23]} {[%emt 00:01:42]} axb5 {[%clk 00:01:43]}
{[%emt 00:00:03]} 32. Bxc8 {[%clk 00:02:44]} {[%emt 00:00:09]} Rxc8 {[%clk
00:02:07]} {[%emt 00:00:06]} 33. c7 {[%clk 00:03:10]} {[%emt 00:00:03]} b6
{[%clk 00:02:05]} {[%emt 00:00:32]} 34. d5 {[%clk 00:03:37]} {[%emt 00:00:03]}
Kb7 {[%clk 00:02:31]} {[%emt 00:00:04]} 35. d6 {[%clk 00:04:01]} {[%emt
00:00:06]} b4 {[%clk 00:02:36]} {[%emt 00:00:24]} 36. Rc4 {[%clk 00:00:42]}
{[%emt 00:03:49]} b3 {[%clk 00:02:23]} {[%emt 00:00:44]} 37. Rb4 {[%clk
00:00:45]} {[%emt 00:00:28]} Ra8 {[%clk 00:02:04]} {[%emt 00:00:49]} 38. Rxb3
{[%clk 00:01:02]} {[%emt 00:00:12]} Kc6 {[%clk 00:01:59]} {[%emt 00:00:36]} 39.
gxf4 {[%clk 00:00:48]} {[%emt 00:00:43]} gxf4 {[%clk 00:02:20]} {[%emt
00:00:09]} 40. Kg2 {[%clk 00:00:44]} {[%emt 00:00:34]} Rhe8 {[%clk 00:01:56]}
{[%emt 00:00:55]} 41. Kf3 {[%clk 00:23:37]} {[%emt 00:07:37]} Re6 {[%clk
00:30:02]} {[%emt 00:02:24]} 42. Rc1+ {[%clk 00:21:43]} {[%emt 00:02:23]} Kd7
{[%clk 00:30:20]} {[%emt 00:00:12]} 43. Rxb6 {[%clk 00:21:35]} {[%emt
00:00:39]} Rc8 {[%clk 00:30:47]} {[%emt 00:00:04]} 44. Rg1 {[%clk 00:11:20]}
{[%emt 00:10:44]} Rxd6 {[%clk 00:30:47]} {[%emt 00:00:31]} 45. Rg7+ {[%clk
00:11:38]} {[%emt 00:00:11]} Ke6 {[%clk 00:31:13]} {[%emt 00:00:04]} 46. Rb8
{[%clk 00:11:24]} {[%emt 00:00:43]} Kd5 {[%emt 00:01:38]} 47. Ke4+ 1-0